[Event "Niedersachsen Jubilaeumsturnier Open A 2"]
[Site "Wolfsburg"]
[Date "2024.11.16"]
[Round "2.7"]
[White "Moser, Axel"]
[Black "Hlavchev, Ivan"]
[Result "1-0"]
[ECO "D63"]
[WhiteElo "2149"]
[BlackElo "1973"]
[Annotator "ChessBase"]
[PlyCount "109"]
[EventDate "2024.11.15"]
[EventCountry "GER"]
[SourceTitle "playchess.com"]
[Source "ChessBase"]
[SourceQuality "1"]
[TimeControl "5400+30"]

1. d4 {[%emt 0:00:03]} d5 {[%emt 0:00:44]} 2. c4 {[%emt 0:00:30]} e6 {[%emt 0:00:03]} 3. Nc3 {[%emt 0:00:52]} Be7 {[%emt 0:00:19]} 4. Nf3 {[%emt 0:00:17]} Nf6 {[%emt 0:00:05]} 5. Bg5 {[%emt 0:00:55]} h6 {[%emt 0:00:14]} 6. Bf4 {[%emt 0:05:30]} O-O {[%emt 0:02:32]} 7. e3 {[%emt 0:00:05]} Nbd7 {[%emt 0:15:57]} 8. Rc1 {[%emt 0:03:54]} c5 {[%emt 0:02:50]} 9. dxc5 {[%emt 0:04:54]} Nxc5 {[%emt 0:07:00]} 10. Be2 {[%emt 0:01:21]} dxc4 {[%emt 0:00:52]} 11. Bxc4 {[%emt 0:00:16]} a6 {[%emt 0:02:31]} 12. O-O {[%emt 0:05:16]} b5 {[%emt 0:00:21]} 13. Be2 {[%emt 0:00:26]} Bb7 {[%emt 0:01:29]} 14. a3 {[%emt 0:09:51]} Qb6 {[%emt 0:05:49]} 15. b4 {[%emt 0:02:05]} Ncd7 {[%emt 0:01:06]} 16. e4 {[%emt 0:04:47]} Rac8 {[%emt 0:08:58]} 17. Bd3 {[%emt 0:02:21]} Rfd8 {[%emt 0:09:09]} 18. Qe2 {[%emt 0:00:20]} Qa7 {[%emt 0:02:43]} 19. Bb1 {[%emt 0:02:39]} Qa8 {[%emt 0:01:43]} 20. Rfe1 {[%emt 0:05:05]} Nf8 {[%emt 0:03:00]} 21. h3 {[%emt 0:01:53]} Rc4 {[%emt 0:02:16]} 22. Bd3 {[%emt 0:00:33]} Rcc8 {[%emt 0:00:38]} 23. Nd2 {[%emt 0:03:16]} Ng6 {[%emt 0:06:16]} 24. Bg3 {[%emt 0:01:00]} e5 {[%emt 0:06:43]} 25. Nb3 {[%emt 0:01:54]} Nh5 {[%emt 0:01:46]} 26. Bb1 {[%emt 0:02:06]} Nxg3 {[%emt 0:01:58]} 27. fxg3 {[%emt 0:00:09]} Bg5 {[%emt 0:00:36]} 28. Rc2 {[%emt 0:00:12]} Rc4 {[%emt 0:05:09]} 29. Na5 {[%emt 0:02:03]} Rcd4 {[%emt 0:00:59]} 30. Nxb7 {[%emt 0:00:37]} Qxb7 {[%emt 0:00:26]} 31. Nd5 {[%emt 0:01:08]} Rc8 {[%emt 0:02:41]} 32. h4 {[%emt 0:11:13]} Rxc2 {[%emt 0:00:40]} 33. Qxc2 {[%emt 0:00:11]} Bd8 {[%emt 0:04:40]} 34. Ba2 {[%emt 0:01:04]} Nf8 {[%emt 0:01:31]} 35. Rf1 {[%emt 0:02:20]} Ne6 {[%emt 0:00:14]} 36. Kh2 {[%emt 0:01:05]} a5 {[%emt 0:00:56]} 37. Qe2 {[%emt 0:02:27]} axb4 {[%emt 0:00:38]} 38. axb4 {[%emt 0:00:32]} Be7 {[%emt 0:02:13]} 39. Qf3 {[%emt 0:01:43]} Bf8 {[%emt 0:01:10]} 40. Qg4 {[%emt 0:14:20]} Kh8 {[%emt 0:01:00]} 41. Qf5 {[%emt 0:00:55]} Rd2 {[%emt 0:00:00]} 42. Bb1 {[%emt 0:00:00]} Bd6 {[%emt 0:00:00]} 43. Rc1 {[%emt 0:00:00]} Rb2 {[%emt 0:00:00]} 44. Bd3 {[%emt 0:00:00]} g6 {[%emt 0:00:00]} 45. Qf6+ {[%emt 0:00:00]} Kg8 {[%emt 0:00:00]} 46. h5 {[%emt 0:00:00]} gxh5 {[%emt 0:01:33]} 47. Qxh6 {[%emt 0:00:00]} Rf2 {[%emt 0:00:55]} 48. Nf6+ {[%emt 0:00:00]} Rxf6 {[%emt 0:00:05]} 49. Qxf6 {[%emt 0:00:00]} Qd7 {[%emt 0:00:38]} 50. Qf5 {[%emt 0:00:00]} Bxb4 {[%emt 0:01:20]} 51. Be2 {[%emt 0:00:00]} Be7 {[%emt 0:00:56]} 52. Bxh5 {[%emt 0:00:00]} Bg5 {[%emt 0:00:08]} 53. Rf1 {[%emt 0:00:00]} f6 {[%emt 0:00:38]} 54. Bg4 {[%emt 0:00:00]} Kf7 {[%emt 0:00:28]} 55. Qxg5 {[%emt 0:00:00]} 1-0

[Event "Niedersachsen Jubilaeumsturnier Open A 2"]
[Site "Wolfsburg"]
[Date "2024.11.16"]
[Round "2.8"]
[White "Tarasenko, Nazar"]
[Black "Peters, Tom"]
[Result "1/2-1/2"]
[ECO "E52"]
[WhiteElo "1937"]
[BlackElo "2148"]
[Annotator "ChessBase"]
[PlyCount "82"]
[EventDate "2024.11.15"]
[EventCountry "GER"]
[SourceTitle "playchess.com"]
[Source "ChessBase"]
[SourceQuality "1"]
[TimeControl "5400+30"]

1. d4 {[%emt 0:00:01]} e6 {[%emt 0:00:19]} 2. c4 {[%emt 0:00:04]} Bb4+ {[%emt 0:00:08]} 3. Nc3 {[%emt 0:00:39]} Nf6 {[%emt 0:00:08]} 4. e3 {[%emt 0:00:12]} O-O {[%emt 0:00:33]} 5. Bd3 {[%emt 0:00:03]} d5 {[%emt 0:02:31]} 6. Nf3 {[%emt 0:01:27]} b6 {[%emt 0:03:10]} 7. O-O {[%emt 0:01:56]} Bb7 {[%emt 0:02:58]} 8. a3 {[%emt 0:04:08]} Bxc3 {[%emt 0:03:47]} 9. bxc3 {[%emt 0:00:06]} Nbd7 {[%emt 0:01:07]} 10. cxd5 {[%emt 0:02:34]} exd5 {[%emt 0:00:11]} 11. c4 {[%emt 0:01:57]} Re8 {[%emt 0:05:09]} 12. Re1 {[%emt 0:09:54]} c5 {[%emt 0:09:04]} 13. cxd5 {[%emt 0:01:15]} Bxd5 {[%emt 0:03:17]} 14. Bb2 {[%emt 0:03:13]} c4 {[%emt 0:05:32]} 15. Bf1 {[%emt 0:05:54]} Rc8 {[%emt 0:05:56]} 16. Rc1 {[%emt 0:02:04]} b5 {[%emt 0:05:46]} 17. Nd2 {[%emt 0:04:22]} Nb6 {[%emt 0:01:26]} 18. f3 {[%emt 0:04:13]} Na4 {[%emt 0:01:53]} 19. Bc3 {[%emt 0:00:14]} Nxc3 {[%emt 0:05:50]} 20. Rxc3 {[%emt 0:00:11]} Qb6 {[%emt 0:01:17]} 21. Nb1 {[%emt 0:05:00]} Bb7 {[%emt 0:05:20]} 22. Qd2 {[%emt 0:01:29]} Nd5 {[%emt 0:03:19]} 23. Rcc1 {[%emt 0:00:12]} f5 {[%emt 0:03:44]} 24. Kh1 {[%emt 0:03:58]} Nf6 {[%emt 0:04:35]} 25. Nc3 {[%emt 0:01:55]} a6 {[%emt 0:02:14]} 26. Qb2 {[%emt 0:03:40]} f4 {[%emt 0:04:11]} 27. Na4 {[%emt 0:00:53]} Qc6 {[%emt 0:10:18]} 28. Nc5 {[%emt 0:00:16]} Rxe3 {[%emt 0:01:42]} 29. Rxe3 {[%emt 0:03:38]} fxe3 {[%emt 0:00:02]} 30. Nxb7 {[%emt 0:00:21]} Qxb7 {[%emt 0:00:43]} 31. Bxc4+ {[%emt 0:00:37]} Kf8 {[%emt 0:03:17]} 32. Rc3 {[%emt 0:04:01]} Qe7 {[%emt 0:02:10]} 33. Be2 {[%emt 0:00:08]} Rd8 {[%emt 0:02:07]} 34. Qc1 {[%emt 0:01:10]} Nd5 {[%emt 0:00:30]} 35. Rc5 {[%emt 0:00:14]} g6 {[%emt 0:01:29]} 36. g3 {[%emt 0:00:21]} Rd7 {[%emt 0:00:56]} 37. Rc8+ {[%emt 0:03:12]} Kg7 {[%emt 0:00:06]} 38. Qc6 {[%emt 0:00:17]} Rd6 {[%emt 0:01:16]} 39. Qc5 {[%emt 0:00:38]} Rd7 {[%emt 0:00:45]} 40. Qc6 {[%emt 0:00:10]} Rd6 {[%emt 0:01:02]} 41. Qc5 {[%emt 0:00:07]} Rd7 {[%emt 0:00:00]} 1/2-1/2

[Event "Niedersachsen Jubilaeumsturnier Open A 2"]
[Site "Wolfsburg"]
[Date "2024.11.16"]
[Round "2.9"]
[White "Laube, Reiner"]
[Black "Gersemann, Karl"]
[Result "0-1"]
[ECO "D00"]
[WhiteElo "2140"]
[BlackElo "1852"]
[Annotator "ChessBase"]
[PlyCount "106"]
[EventDate "2024.11.15"]
[EventCountry "GER"]
[SourceTitle "playchess.com"]
[Source "ChessBase"]
[SourceQuality "1"]
[TimeControl "5400+30"]

1. d4 {[%emt 0:00:02]} Nf6 {[%emt 0:00:08]} 2. Bg5 {[%emt 0:00:07]} d5 {[%emt 0:00:06]} 3. e3 {[%emt 0:00:16]} c5 {[%emt 0:00:22]} 4. Bxf6 {[%emt 0:00:16]} gxf6 {[%emt 0:00:07]} 5. dxc5 {[%emt 0:00:12]} e6 {[%emt 0:00:08]} 6. c4 {[%emt 0:00:14]} Bxc5 {[%emt 0:00:38]} 7. Nc3 {[%emt 0:03:08]} d4 {[%emt 0:04:02]} 8. exd4 {[%emt 0:00:27]} Bxd4 {[%emt 0:01:14]} 9. Nge2 {[%emt 0:04:06]} Nc6 {[%emt 0:01:16]} 10. Qd2 {[%emt 0:03:11]} Bxf2+ {[%emt 0:00:21]} 11. Kd1 {[%emt 0:00:18]} Qxd2+ {[%emt 0:00:20]} 12. Kxd2 {[%emt 0:00:03]} Ke7 {[%emt 0:01:39]} 13. Ne4 {[%emt 0:02:24]} Rd8+ {[%emt 0:00:29]} 14. Kc3 {[%emt 0:00:21]} Be3 {[%emt 0:01:19]} 15. h4 {[%emt 0:07:58]} f5 {[%emt 0:02:32]} 16. Ng5 {[%emt 0:08:05]} Bd2+ {[%emt 0:00:15]} 17. Kc2 {[%emt 0:00:59]} Nb4+ {[%emt 0:00:26]} 18. Kb3 {[%emt 0:00:09]} a5 {[%emt 0:00:37]} 19. a4 {[%emt 0:00:22]} Ra6 {[%emt 0:04:02]} 20. Nc3 {[%emt 0:00:54]} Bxc3 {[%emt 0:00:51]} 21. bxc3 {[%emt 0:03:38]} Nd3 {[%emt 0:01:49]} 22. Bxd3 {[%emt 0:00:29]} Rxd3 {[%emt 0:00:08]} 23. c5 {[%emt 0:08:51]} Rc6 {[%emt 0:03:15]} 24. Kc4 {[%emt 0:06:55]} Rd5 {[%emt 0:00:17]} 25. Nxh7 {[%emt 0:00:44]} Rdxc5+ {[%emt 0:00:26]} 26. Kd3 {[%emt 0:00:37]} Rxc3+ {[%emt 0:00:07]} 27. Ke2 {[%emt 0:00:08]} Rc2+ {[%emt 0:00:16]} 28. Kf1 {[%emt 0:00:42]} Rc1+ {[%emt 0:00:05]} 29. Kf2 {[%emt 0:00:12]} Rxa1 {[%emt 0:00:30]} 30. Rxa1 {[%emt 0:00:07]} Rc4 {[%emt 0:00:59]} 31. Rh1 {[%emt 0:00:35]} Rg4 {[%emt 0:00:39]} 32. Ng5 {[%emt 0:01:47]} Bd7 {[%emt 0:00:32]} 33. Nf3 {[%emt 0:00:22]} Rg8 {[%emt 0:01:31]} 34. Rb1 {[%emt 0:01:08]} Bc6 {[%emt 0:00:23]} 35. g3 {[%emt 0:00:24]} f4 {[%emt 0:06:51]} 36. gxf4 {[%emt 0:04:44]} Rg4 {[%emt 0:00:19]} 37. Ne5 {[%emt 0:05:41]} Rxf4+ {[%emt 0:01:22]} 38. Kg3 {[%emt 0:00:15]} Rxa4 {[%emt 0:02:58]} 39. h5 {[%emt 0:05:09]} Rd4 {[%emt 0:04:43]} 40. Rf1 {[%emt 0:12:56]} f5 {[%emt 0:03:30]} 41. h6 {[%emt 0:10:52]} Kf6 {[%emt 0:00:33]} 42. Nxc6 {[%emt 0:00:11]} bxc6 {[%emt 0:00:07]} 43. Rh1 {[%emt 0:02:25]} Rd8 {[%emt 0:00:08]} 44. Kf4 {[%emt 0:05:53]} e5+ {[%emt 0:00:38]} 45. Ke3 {[%emt 0:03:13]} Rh8 {[%emt 0:00:46]} 46. Rc1 {[%emt 0:00:24]} Rxh6 {[%emt 0:00:37]} 47. Rxc6+ {[%emt 0:00:16]} Kg5 {[%emt 0:00:07]} 48. Rc5 {[%emt 0:00:29]} Rh3+ {[%emt 0:00:11]} 49. Kf2 {[%emt 0:00:19]} Kf4 {[%emt 0:00:12]} 50. Rxa5 {[%emt 0:00:08]} Rh2+ {[%emt 0:00:09]} 51. Ke1 {[%emt 0:00:08]} e4 {[%emt 0:00:19]} 52. Ra3 {[%emt 0:00:25]} e3 {[%emt 0:00:16]} 53. Ra5 {[%emt 0:00:21]} Ke4 {[%emt 0:00:25]} 0-1

[Event "Niedersachsen Jubilaeumsturnier Open A 2"]
[Site "Wolfsburg"]
[Date "2024.11.16"]
[Round "2.11"]
[White "Meiwes, Thore"]
[Black "Zhang, Onno"]
[Result "1-0"]
[ECO "D02"]
[WhiteElo "2112"]
[BlackElo "1801"]
[Annotator "ChessBase"]
[PlyCount "47"]
[EventDate "2024.11.15"]
[EventCountry "GER"]
[SourceTitle "playchess.com"]
[Source "ChessBase"]
[SourceQuality "1"]
[TimeControl "5400+30"]

1. d4 {[%emt 0:00:01]} Nf6 {[%emt 0:00:20]} 2. Nf3 {[%emt 0:00:02]} e6 {[%emt 0:00:10]} 3. Bf4 {[%emt 0:00:04]} d5 {[%emt 0:01:59]} 4. e3 {[%emt 0:00:06]} c5 {[%emt 0:01:10]} 5. Nbd2 {[%emt 0:00:06]} Nc6 {[%emt 0:00:12]} 6. c3 {[%emt 0:00:06]} Be7 {[%emt 0:01:05]} 7. Ne5 {[%emt 0:00:10]} O-O {[%emt 0:00:50]} 8. Bd3 {[%emt 0:00:06]} Nxe5 {[%emt 0:02:58]} 9. dxe5 {[%emt 0:00:10]} Nd7 {[%emt 0:01:36]} 10. h4 {[%emt 0:00:04]} b6 {[%emt 0:09:04]} 11. Bxh7+ {[%emt 0:00:12]} Kxh7 {[%emt 0:00:49]} 12. Qh5+ {[%emt 0:00:06]} Kg8 {[%emt 0:00:26]} 13. Nf3 {[%emt 0:00:04]} f6 {[%emt 0:07:08]} 14. Ng5 {[%emt 0:00:02]} fxg5 {[%emt 0:01:45]} 15. hxg5 {[%emt 0:00:49]} Rf5 {[%emt 0:02:10]} 16. Qh7+ {[%emt 0:03:25]} Kf7 {[%emt 0:02:01]} 17. g6+ {[%emt 0:00:25]} Ke8 {[%emt 0:00:36]} 18. Qxg7 {[%emt 0:03:06]} Rf8 {[%emt 0:43:11]} 19. Rh8 {[%emt 0:00:28]} Qc7 {[%emt 0:01:54]} 20. Qf7+ {[%emt 0:03:21]} Kd8 {[%emt 0:00:08]} 21. Rxf8+ {[%emt 0:00:13]} Bxf8 {[%emt 0:02:02]} 22. Bg5+ {[%emt 0:00:09]} Nf6 {[%emt 0:00:07]} 23. Bxf6+ {[%emt 0:00:17]} Be7 {[%emt 0:00:10]} 24. Qf8+ {[%emt 0:00:16]} 1-0

[Event "Niedersachsen Jubilaeumsturnier Open A 2"]
[Site "Wolfsburg"]
[Date "2024.11.16"]
[Round "2.13"]
[White "Krueger, Moritz"]
[Black "Hendler, Markus"]
[Result "0-1"]
[ECO "E90"]
[WhiteElo "1788"]
[BlackElo "1843"]
[Annotator "NA"]
[PlyCount "62"]
[EventDate "2024.11.15"]
[EventCountry "GER"]
[SourceTitle "playchess.com"]
[Source "ChessBase"]
[SourceQuality "1"]
[TimeControl "5400+30"]

1. d4 {[%emt 0:00:02]} Nf6 {[%emt 0:00:06]} 2. c4 {[%emt 0:00:18]} g6 {[%emt 0:00:06]} 3. Nc3 {[%emt 0:00:10]} Bg7 {[%emt 0:00:08]} 4. e4 {[%emt 0:00:13]} d6 {[%emt 0:00:07]} 5. h3 {[%emt 0:00:12]} O-O {[%emt 0:01:42]} 6. Nf3 {[%emt 0:00:08]} e5 {[%emt 0:02:46]} 7. d5 {[%emt 0:00:08]} Na6 {[%emt 0:05:35]} 8. Be3 {[%emt 0:00:15]} Nc5 {[%emt 0:02:52]} 9. Qc2 {[%emt 0:00:16]} a5 {[%emt 0:01:48]} 10. Bxc5 {[%emt 0:00:40]} dxc5 {[%emt 0:00:09]} 11. Nxe5 {[%emt 0:00:50]} Nxe4 {[%emt 0:03:15]} 12. Nxe4 {[%emt 0:01:05]} Bxe5 {[%emt 0:01:03]} 13. Nxc5 {[%emt 0:00:12]} Qe7 {[%emt 0:09:17]} 14. Qe2 {[%emt 0:00:47]} Re8 {[%emt 0:03:23]} 15. Nd3 {[%emt 0:00:16]} Qf6 {[%emt 0:04:58]} 16. Kd1 {[%emt 0:01:09]} Bf5 {[%emt 0:05:26]} 17. Nxe5 {[%emt 0:00:25]} Rxe5 {[%emt 0:01:06]} 18. Qd2 {[%emt 0:00:18]} Rae8 {[%emt 0:05:10]} 19. Qc3 {[%emt 0:02:04]} Qe7 {[%emt 0:06:48]} 20. Bd3 {[%emt 0:01:26]} Bxd3 {[%emt 0:00:35]} 21. Qxd3 {[%emt 0:00:12]} Re1+ {[%emt 0:01:25]} 22. Kc2 {[%emt 0:00:54]} Re2+ {[%emt 0:00:29]} 23. Kd1 {[%emt 0:00:27]} Rxf2 {[%emt 0:00:45]} 24. Rc1 {[%emt 0:02:06]} Qg5 {[%emt 0:04:11]} 25. Rc2 {[%emt 0:00:49]} Qxg2 {[%emt 0:03:33]} 26. Rxf2 {[%emt 0:00:22]} Qxf2 {[%emt 0:02:07]} 27. Kc1 {[%emt 0:02:59]} Re3 {[%emt 0:03:04]} 28. Qd2 {[%emt 0:01:07]} Qf4 {[%emt 0:03:15]} 29. b3 {[%emt 0:00:25]} Qe5 {[%emt 0:00:41]} 30. Kd1 {[%emt 0:04:10]} Qa1+ {[%emt 0:03:18]} 31. Qc1 {[%emt 0:00:12]} Qd4+ {[%emt 0:00:42]} 0-1

[Event "Niedersachsen Jubilaeumsturnier Open A 2"]
[Site "Wolfsburg"]
[Date "2024.11.16"]
[Round "2.14"]
[White "Noack, Reiner"]
[Black "Woelk, Marvin"]
[Result "0-1"]
[ECO "D81"]
[WhiteElo "2003"]
[BlackElo "1965"]
[Annotator "ChessBase"]
[PlyCount "66"]
[EventDate "2024.11.15"]
[EventCountry "GER"]
[SourceTitle "playchess.com"]
[Source "ChessBase"]
[SourceQuality "1"]
[TimeControl "5400+30"]

1. d4 {[%emt 0:00:05]} Nf6 {[%emt 0:00:05]} 2. c4 {[%emt 0:00:12]} g6 {[%emt 0:00:16]} 3. Nc3 {[%emt 0:00:12]} d5 {[%emt 0:00:07]} 4. Qb3 {[%emt 0:00:34]} dxc4 {[%emt 0:00:22]} 5. Qxc4 {[%emt 0:00:05]} a6 {[%emt 0:00:55]} 6. e4 {[%emt 0:00:32]} b5 {[%emt 0:00:57]} 7. Qd3 {[%emt 0:00:28]} Bb7 {[%emt 0:01:16]} 8. e5 {[%emt 0:04:43]} Nd5 {[%emt 0:03:10]} 9. a3 {[%emt 0:01:39]} Bg7 {[%emt 0:00:51]} 10. Nf3 {[%emt 0:00:07]} O-O {[%emt 0:01:44]} 11. Be2 {[%emt 0:00:54]} Nd7 {[%emt 0:05:14]} 12. Ne4 {[%emt 0:03:01]} c5 {[%emt 0:08:05]} 13. Nxc5 {[%emt 0:01:27]} Nxc5 {[%emt 0:01:06]} 14. dxc5 {[%emt 0:00:06]} Qc7 {[%emt 0:01:26]} 15. Be3 {[%emt 0:04:49]} Rad8 {[%emt 0:15:54]} 16. Qb3 {[%emt 0:03:41]} Nxe3 {[%emt 0:03:35]} 17. Qxe3 {[%emt 0:00:33]} Bxf3 {[%emt 0:00:56]} 18. Bxf3 {[%emt 0:11:10]} Bxe5 {[%emt 0:01:50]} 19. c6 {[%emt 0:00:37]} Bxb2 {[%emt 0:03:40]} 20. Ra2 {[%emt 0:00:26]} Bd4 {[%emt 0:04:15]} 21. Qb3 {[%emt 0:01:24]} Qa5+ {[%emt 0:02:10]} 22. Kf1 {[%emt 0:00:58]} e5 {[%emt 0:02:16]} 23. g3 {[%emt 0:00:24]} Kh8 {[%emt 0:03:26]} 24. Bd5 {[%emt 0:01:12]} f5 {[%emt 0:04:52]} 25. Be6 {[%emt 0:00:31]} f4 {[%emt 0:04:08]} 26. Kg2 {[%emt 0:01:17]} Qc7 {[%emt 0:03:17]} 27. Rc2 {[%emt 0:00:52]} f3+ {[%emt 0:03:44]} 28. Kh3 {[%emt 0:00:11]} Qg7 {[%emt 0:04:49]} 29. g4 {[%emt 0:01:04]} Qh6+ {[%emt 0:06:02]} 30. Kg3 {[%emt 0:00:01]} Qf4+ {[%emt 0:00:45]} 31. Kh3 {[%emt 0:00:05]} e4 {[%emt 0:02:35]} 32. c7 {[%emt 0:01:31]} Qh6+ {[%emt 0:00:15]} 33. Kg3 {[%emt 0:00:09]} Be5# {[%emt 0:12:57]} 0-1

[Event "Niedersachsen Jubilaeumsturnier Open A 2"]
[Site "Wolfsburg"]
[Date "2024.11.16"]
[Round "2.15"]
[White "Stoeber, Alexander"]
[Black "Costello, Colin A"]
[Result "1-0"]
[ECO "C50"]
[WhiteElo "2018"]
[BlackElo "1877"]
[Annotator "ChessBase"]
[PlyCount "71"]
[EventDate "2024.11.15"]
[EventCountry "GER"]
[SourceTitle "playchess.com"]
[Source "ChessBase"]
[SourceQuality "1"]
[TimeControl "5400+30"]

1. e4 {[%emt 0:00:03]} e5 {[%emt 0:00:08]} 2. Nf3 {[%emt 0:00:06]} Nc6 {[%emt 0:00:06]} 3. d4 {[%emt 0:00:05]} exd4 {[%emt 0:00:06]} 4. Bc4 {[%emt 0:00:04]} Nf6 {[%emt 0:00:35]} 5. O-O {[%emt 0:00:07]} d6 {[%emt 0:07:58]} 6. Nxd4 {[%emt 0:01:32]} Be7 {[%emt 0:00:35]} 7. Nc3 {[%emt 0:00:29]} O-O {[%emt 0:00:32]} 8. Re1 {[%emt 0:03:39]} Nxd4 {[%emt 0:00:26]} 9. Qxd4 {[%emt 0:00:12]} Be6 {[%emt 0:00:06]} 10. Bxe6 {[%emt 0:04:41]} fxe6 {[%emt 0:00:08]} 11. e5 {[%emt 0:00:45]} c5 {[%emt 0:09:05]} 12. Qd1 {[%emt 0:09:04]} dxe5 {[%emt 0:00:27]} 13. Rxe5 {[%emt 0:02:53]} Qxd1+ {[%emt 0:03:19]} 14. Nxd1 {[%emt 0:00:06]} Rad8 {[%emt 0:00:42]} 15. Bg5 {[%emt 0:08:13]} Kf7 {[%emt 0:03:15]} 16. Nc3 {[%emt 0:07:48]} h6 {[%emt 0:04:01]} 17. Bxf6 {[%emt 0:00:36]} gxf6 {[%emt 0:01:37]} 18. Re2 {[%emt 0:00:22]} f5 {[%emt 0:07:37]} 19. Rae1 {[%emt 0:00:15]} Rd6 {[%emt 0:00:24]} 20. Nb5 {[%emt 0:07:51]} Rc6 {[%emt 0:03:44]} 21. Nxa7 {[%emt 0:09:07]} Rb6 {[%emt 0:00:16]} 22. c4 {[%emt 0:00:21]} Ra8 {[%emt 0:01:06]} 23. Nb5 {[%emt 0:00:06]} Rxa2 {[%emt 0:00:34]} 24. b3 {[%emt 0:08:35]} Rxe2 {[%emt 0:01:36]} 25. Rxe2 {[%emt 0:00:04]} Ra6 {[%emt 0:00:34]} 26. f4 {[%emt 0:01:22]} Bf6 {[%emt 0:00:47]} 27. Kf2 {[%emt 0:04:24]} Ra1 {[%emt 0:00:35]} 28. Nd6+ {[%emt 0:01:26]} Kf8 {[%emt 0:03:46]} 29. Rxe6 {[%emt 0:02:34]} Bd4+ {[%emt 0:00:10]} 30. Kg3 {[%emt 0:02:10]} Ra3 {[%emt 0:00:51]} 31. Re8+ {[%emt 0:02:54]} Kg7 {[%emt 0:00:15]} 32. Re7+ {[%emt 0:00:04]} Kf6 {[%emt 0:00:26]} 33. Rxb7 {[%emt 0:00:08]} Ra2 {[%emt 0:00:59]} 34. Rb6 {[%emt 0:05:46]} Bf2+ {[%emt 0:00:26]} 35. Kf3 {[%emt 0:02:32]} Bg1 {[%emt 0:00:22]} 36. Nxf5+ {[%emt 0:01:18]} 1-0

[Event "Niedersachsen Jubilaeumsturnier Open A 2"]
[Site "Wolfsburg"]
[Date "2024.11.16"]
[Round "2.16"]
[White "Reins, Henning"]
[Black "Poelig, Juergen"]
[Result "1-0"]
[ECO "B40"]
[WhiteElo "1954"]
[BlackElo "1874"]
[Annotator "ChessBase"]
[PlyCount "59"]
[EventDate "2024.11.15"]
[EventCountry "GER"]
[SourceTitle "playchess.com"]
[Source "ChessBase"]
[SourceQuality "1"]
[TimeControl "5400+30"]

1. e4 {[%emt 0:00:03]} e6 {[%emt 0:00:06]} 2. b3 {[%emt 0:00:26]} d5 {[%emt 0:01:22]} 3. Bb2 {[%emt 0:00:23]} c5 {[%emt 0:00:44]} 4. exd5 {[%emt 0:01:57]} exd5 {[%emt 0:00:55]} 5. Nf3 {[%emt 0:00:49]} Nf6 {[%emt 0:00:46]} 6. Bb5+ {[%emt 0:06:12]} Nc6 {[%emt 0:01:25]} 7. Qe2+ {[%emt 0:05:07]} Be6 {[%emt 0:03:44]} 8. Ng5 {[%emt 0:05:53]} Qd7 {[%emt 0:02:23]} 9. O-O {[%emt 0:03:42]} O-O-O {[%emt 0:03:41]} 10. Nxe6 {[%emt 0:03:26]} fxe6 {[%emt 0:01:32]} 11. d4 {[%emt 0:05:31]} Kb8 {[%emt 0:08:42]} 12. Nd2 {[%emt 0:10:46]} cxd4 {[%emt 0:07:23]} 13. Nf3 {[%emt 0:11:52]} Bd6 {[%emt 0:07:40]} 14. Bxc6 {[%emt 0:06:37]} bxc6 {[%emt 0:02:32]} 15. Bxd4 {[%emt 0:01:22]} c5 {[%emt 0:01:50]} 16. Be5 {[%emt 0:05:59]} Ng4 {[%emt 0:02:40]} 17. Rfe1 {[%emt 0:04:52]} Rde8 {[%emt 0:07:55]} 18. c4 {[%emt 0:04:55]} Rhf8 {[%emt 0:07:27]} 19. Bxd6+ {[%emt 0:09:40]} Qxd6 {[%emt 0:00:05]} 20. cxd5 {[%emt 0:06:57]} Qxd5 {[%emt 0:25:03]} 21. Rad1 {[%emt 0:00:40]} Qc6 {[%emt 0:03:03]} 22. h3 {[%emt 0:00:16]} Nf6 {[%emt 0:00:34]} 23. Ne5 {[%emt 0:00:34]} Qc7 {[%emt 0:02:36]} 24. Qa6 {[%emt 0:01:14]} Qb6 {[%emt 0:02:43]} 25. Qa4 {[%emt 0:01:12]} Rc8 {[%emt 0:00:50]} 26. Nc4 {[%emt 0:01:07]} Qc6 {[%emt 0:01:00]} 27. Qa5 {[%emt 0:00:12]} Nd5 {[%emt 0:01:11]} 28. Ne5 {[%emt 0:00:17]} Qb6 {[%emt 0:00:51]} 29. Nd7+ {[%emt 0:00:18]} Kb7 {[%emt 0:00:53]} 30. Nxb6 {[%emt 0:00:14]} 1-0

[Event "Niedersachsen Jubilaeumsturnier Open A 2"]
[Site "Wolfsburg"]
[Date "2024.11.16"]
[Round "2.17"]
[White "Rademacher, Bengt"]
[Black "Scheffner, Jarno"]
[Result "0-1"]
[ECO "B52"]
[WhiteElo "1876"]
[BlackElo "1953"]
[Annotator "ChessBase"]
[PlyCount "52"]
[EventDate "2024.11.15"]
[EventCountry "GER"]
[SourceTitle "playchess.com"]
[Source "ChessBase"]
[SourceQuality "1"]
[TimeControl "5400+30"]

1. e4 {[%emt 0:00:03]} c5 {[%emt 0:00:08]} 2. Nf3 {[%emt 0:00:14]} d6 {[%emt 0:00:15]} 3. Bb5+ {[%emt 0:00:17]} Bd7 {[%emt 0:00:10]} 4. Bxd7+ {[%emt 0:00:18]} Qxd7 {[%emt 0:00:07]} 5. c4 {[%emt 0:00:29]} Nf6 {[%emt 0:01:32]} 6. Nc3 {[%emt 0:03:26]} Nc6 {[%emt 0:00:11]} 7. O-O {[%emt 0:04:11]} e6 {[%emt 0:14:31]} 8. d3 {[%emt 0:00:46]} Be7 {[%emt 0:00:08]} 9. h3 {[%emt 0:01:55]} h6 {[%emt 0:00:23]} 10. Be3 {[%emt 0:01:47]} g5 {[%emt 0:02:56]} 11. d4 {[%emt 0:06:04]} cxd4 {[%emt 0:01:49]} 12. Nxd4 {[%emt 0:02:40]} Ne5 {[%emt 0:00:49]} 13. Qe2 {[%emt 0:02:45]} Rg8 {[%emt 0:02:28]} 14. Rfd1 {[%emt 0:03:20]} g4 {[%emt 0:04:14]} 15. hxg4 {[%emt 0:07:58]} Nexg4 {[%emt 0:01:18]} 16. f4 {[%emt 0:07:31]} Nxe3 {[%emt 0:03:46]} 17. Qxe3 {[%emt 0:00:03]} Ng4 {[%emt 0:00:14]} 18. Qe2 {[%emt 0:06:54]} Qc7 {[%emt 0:00:53]} 19. Rd2 {[%emt 0:06:58]} a6 {[%emt 0:01:44]} 20. f5 {[%emt 0:05:52]} d5 {[%emt 0:02:25]} 21. Nf3 {[%emt 0:03:41]} Bc5+ {[%emt 0:01:09]} 22. Kh1 {[%emt 0:01:27]} Rg5 {[%emt 0:00:28]} 23. g3 {[%emt 0:09:07]} Qxg3 {[%emt 0:01:55]} 24. Qg2 {[%emt 0:03:44]} Rh5+ {[%emt 0:00:41]} 25. Nh2 {[%emt 0:01:50]} Rxh2+ {[%emt 0:00:28]} 26. Qxh2 {[%emt 0:00:07]} Nxh2 {[%emt 0:00:11]} 0-1